bitfinex/quotes_SOLUSD_20250919
["timestamp","ask_amount","ask_price","bid_price","bid_amount"]
[1758260225894,0.06,245.19,245.16,1.50869266]
[1758260226094,0.06,245.19,245.18,1.47869266]
[1758260226265,0.06,245.19,245.17,0.68]
[1758260226583,0.06,245.19,245.18,2.15869266]
[1758260227785,0.06,245.19,245.18,32.23732876]
[1758260229200,0.06,245.19,245.18,26.0]
[1758260229992,4.13846975,245.19,245.18,26.0]
[1758260230405,4.80846975,245.19,245.16,0.03]
[1758260230703,0.67,245.18,245.16,0.03]
[1758260231372,4.13846975,245.19,245.16,0.03]
[1758260231565,0.67,245.17,245.16,0.03]
[1758260231984,1.47869266,245.18,245.16,0.03]
[1758260232174,6.28716241,245.19,245.16,0.03]
[1758260232570,0.67,245.18,245.16,0.03]
[1758260232808,0.67,245.18,245.17,0.03]
[1758260234092,4.7486361,245.18,245.17,0.03]
[1758260238611,19.82292277,245.18,245.17,0.03]
[1758260241577,18.34423011,245.18,245.17,0.03]
[1758260241896,19.82292277,245.18,245.17,0.03]
[1758260244577,20.10724591,245.18,245.17,0.03]
[1758260249102,20.16724591,245.18,245.17,0.03]
[1758260250310,13.87991715,245.17,245.14,0.03]
[1758260250479,15.35860981,245.15,245.14,0.03]
[1758260250983,20.12774503,245.15,245.14,0.03]
[1758260251801,20.96217909,245.15,245.14,0.03]
[1758260255097,19.98785595,245.15,245.14,0.03]
[1758260255302,51.58785595,245.15,245.14,0.03]
[1758260258013,4.07913522,245.15,245.14,0.75]
[1758260258203,13.59559401,245.16,245.14,0.75]
[1758260258389,27.41884635,245.17,245.14,0.75]
[1758260258390,45.42325234,245.17,245.14,0.75]
[1758260258590,9.74429745,245.17,245.15,0.72]
[1758260258789,9.74429745,245.17,245.16,0.72]
[1758260259615,0.06,245.18,245.16,0.72]
[1758260259798,0.06,245.18,245.17,0.72]
[1758260260924,0.06,245.18,245.15,3.03312672]
[1758260261128,0.06,245.18,245.16,0.72]
[1758260262319,0.06,245.18,245.17,0.72]
[1758260263927,0.06,245.18,245.17,3.03312672]
[1758260264129,0.06,245.18,245.17,0.72]
[1758260264337,0.06,245.18,245.17,3.03312672]
[1758260271728,0.06,245.18,245.17,2.31312672]
[1758260272025,0.06,245.18,245.17,26.0]
[1758260272216,0.06,245.18,245.17,28.31312672]
[1758260272915,0.06,245.18,245.17,26.0]
[1758260277245,0.06,245.18,245.17,30.07880246]
[1758260277939,0.06,245.18,245.17,30.73880246]
[1758260278334,0.06,245.18,245.17,30.07880246]
[1758260278645,0.06,245.18,245.17,26.0]
[1758260278847,0.06,245.18,245.17,4.07880246]
[1758260279147,0.06,245.18,245.16,6.39206589]
[1758260280367,0.06,245.18,245.17,4.07880246]
[1758260280946,0.06,245.18,245.14,58.27]
[1758260281244,0.06,245.18,245.16,0.66]
[1758260281451,0.06,245.18,245.16,2.97312672]
[1758260281651,0.06,245.18,245.16,2.31312672]
[1758260281961,0.06,245.18,245.17,2.97312672]
[1758260282159,0.06,245.18,245.17,2.31312672]
[1758260282841,0.06,245.18,245.16,6.39199018]
[1758260283231,0.06,245.18,245.17,2.31312672]
[1758260284161,0.06,245.18,245.17,2.97312672]
[1758260284667,0.06,245.18,245.17,7.05192918]
[1758260285039,0.06,245.18,245.17,4.73880246]
[1758260285239,0.06,245.18,245.17,7.05192918]
[1758260287527,0.06,245.18,245.17,37.95192918]
[1758260287932,0.06,245.18,245.17,6.39192918]
[1758260288152,0.06,245.18,245.17,35.63880246]
[1758260288366,0.06,245.18,245.17,37.95192918]
[1758260288548,0.06,245.18,245.17,38.61192918]
[1758260288851,0.06,245.18,245.17,37.95192918]
[1758260290679,0.06,245.18,245.17,38.61192918]
[1758260291477,0.06,245.18,245.17,38.89625232]
[1758260291967,0.06,245.18,245.17,40.93695224]
[1758260292758,0.06,245.18,245.17,40.529072]
[1758260294872,0.06,245.18,245.17,40.93695224]
[1758260295375,0.06,245.18,245.17,39.869072]
[1758260295571,0.06,245.18,245.17,5.99594528]
[1758260295744,0.06,245.18,245.17,39.869072]
[1758260298071,0.06,245.18,245.17,40.529072]
[1758260298656,0.06,245.18,245.17,39.869072]
[1758260299564,0.06,245.18,245.17,8.309072]
[1758260299757,0.06,245.18,245.17,39.869072]
[1758260300863,0.06,245.18,245.17,37.55594528]
[1758260301061,0.06,245.18,245.17,40.529072]
[1758260301470,0.06,245.18,245.17,39.869072]
[1758260304808,0.06,245.18,245.17,39.849072]
[1758260305482,0.06,245.18,245.17,8.309072]
[1758260305782,0.78,245.18,245.17,39.56474886]
[1758260306282,0.78,245.18,245.17,59.85312672]
[1758260306791,0.78,245.18,245.17,57.54]
[1758260307094,4.85866647,245.18,245.16,31.57]
[1758260307259,0.72,245.17,245.16,31.57]
[1758260307978,0.72,245.17,245.16,0.03]
[1758260309861,0.72,245.17,245.16,2.34312672]
[1758260310060,0.72,245.17,245.16,31.57]
[1758260315898,0.72,245.17,245.16,0.03]
[1758260316098,6.27760703,245.17,245.16,0.03]
[1758260316570,4.79880246,245.17,245.16,0.03]
[1758260318191,4.85880246,245.17,245.16,0.03]
[1758260321771,0.78,245.17,245.16,0.03]
[1758260326286,4.85880246,245.17,245.16,0.03]
[1758260327308,0.78,245.17,245.16,0.03]
[1758260328585,4.85880246,245.17,245.16,0.03]
[1758260329587,0.78,245.17,245.16,0.03]
[1758260329793,0.06,245.17,245.16,1.50880457]
[1758260330497,0.06,245.17,245.16,6.2877734]
[1758260334399,0.06,245.17,245.16,5.5877734]
[1758260334714,0.06,245.17,245.16,4.10896883]
[1758260334913,0.06,245.17,245.16,5.5877734]
[1758260338912,0.06,245.17,245.16,4.10896883]
[1758260339101,0.06,245.17,245.16,5.5877734]
[1758260341614,0.06,245.17,245.16,6.3077734]
[1758260342191,0.06,245.17,245.16,7.78657797]
[1758260343202,0.06,245.17,245.16,13.99817291]
[1758260344702,0.06,245.17,245.16,14.14033448]
[1758260345022,0.06,245.17,245.16,45.66033448]
[1758260354033,0.06,245.17,245.16,14.14033448]
[1758260354337,0.72,245.17,245.16,3.14182423]
[1758260354520,0.72,245.17,245.16,0.03]
[1758260354698,0.72,245.17,245.16,31.53]
[1758260355522,4.79880246,245.17,245.16,0.03]
[1758260355731,6.27760703,245.17,245.16,0.03]
[1758260356108,20.13820102,245.17,245.16,0.03]
[1758260361924,0.98499998,245.17,245.16,0.03]
[1758260362837,5.06380244,245.17,245.16,0.03]
[1758260366046,6.54260701,245.17,245.16,0.03]
[1758260366235,20.13820102,245.17,245.16,0.03]
[1758260368456,0.32499998,245.17,245.16,0.03]
[1758260368622,0.99499998,245.17,245.16,0.03]
[1758260369243,0.32499998,245.17,245.16,0.03]
[1758260370528,0.32499998,245.17,245.16,1.50880457]
[1758260370736,0.32499998,245.17,245.16,0.75]
[1758260370928,0.32499998,245.17,245.16,1.50880457]
[1758260371446,0.32499998,245.17,245.16,0.03]
[1758260371651,0.32499998,245.17,245.16,1.50880457]
[1758260374640,0.32499998,245.17,245.16,0.03]
[1758260375346,0.32499998,245.17,245.16,1.50880457]
[1758260375852,0.32499998,245.17,245.16,2.34030317]
[1758260376253,0.06,245.17,245.16,2.34030317]
[1758260377047,0.06,245.17,245.16,0.03]
[1758260377559,0.73,245.17,245.16,0.03]
[1758260377762,0.06,245.17,245.16,0.03]
[1758260390665,0.73,245.17,245.16,0.03]
[1758260391340,0.06,245.17,245.16,0.03]
[1758260392063,0.73,245.17,245.16,0.03]
[1758260393066,0.06,245.17,245.16,0.03]
[1758260393758,0.73,245.17,245.16,0.03]
[1758260394676,0.06,245.17,245.16,0.03]
[1758260395762,0.06,245.17,245.16,2.34030317]
[1758260397257,0.06,245.17,245.16,0.03]
[1758260397650,0.06,245.17,245.16,2.34030317]
[1758260398063,0.06,245.17,245.16,5.37060634]
[1758260398446,0.06,245.17,245.16,7.00355933]
[1758260399555,0.06,245.17,245.16,11.08252816]
[1758260400370,0.06,245.17,245.16,40.25222499]
[1758260402556,0.06,245.17,245.16,39.53222499]
[1758260402758,0.06,245.17,245.16,40.25222499]
[1758260403266,0.06,245.17,245.16,39.53222499]
[1758260405081,0.06,245.17,245.16,37.22192182]
[1758260405278,0.06,245.17,245.16,39.53222499]
[1758260405576,0.06,245.17,245.16,40.25222499]
[1758260406782,0.06,245.17,245.16,11.08252816]
[1758260407083,0.06,245.17,245.16,42.56252816]
[1758260407382,0.06,245.17,245.16,42.54252816]
[1758260407584,0.06,245.17,245.16,42.8268513]
[1758260409893,0.06,245.17,245.16,42.1068513]
[1758260410401,0.06,245.17,245.16,39.79654813]
[1758260410766,0.72,245.17,245.16,39.51222499]
[1758260415686,0.72,245.17,245.16,37.20192182]
[1758260416092,0.72,245.17,245.16,0.03]
[1758260416482,0.72,245.17,245.16,31.49]
[1758260416880,0.72,245.17,245.16,0.03]
[1758260416881,3.03030317,245.17,245.16,0.03]
[1758260417182,7.10910563,245.17,245.16,0.03]
[1758260420075,4.79880246,245.17,245.16,0.03]
[1758260423286,0.72,245.17,245.16,0.03]
[1758260425979,0.74,245.17,245.16,0.03]
[1758260429994,0.06,245.17,245.16,0.03]
[1758260431404,0.06,245.17,245.16,4.10896883]
[1758260433798,0.06,245.17,245.16,0.03]
[1758260433799,0.74,245.17,245.16,0.03]
[1758260434783,7.12910563,245.17,245.16,0.03]
[1758260435203,0.74,245.17,245.16,0.03]
[1758260435411,0.06,245.17,245.16,0.03]
[1758260436485,0.74,245.17,245.16,0.03]
[1758260436694,0.06,245.17,245.16,0.03]
[1758260439704,0.74,245.17,245.16,0.03]
[1758260439897,0.06,245.17,245.16,0.03]
[1758260440910,0.74,245.17,245.16,0.03]
[1758260441107,0.06,245.17,245.16,0.03]
[1758260443115,0.06,245.17,245.16,1.50879779]
[1758260444617,0.06,245.17,245.16,2.20879779]
[1758260444917,0.06,245.17,245.16,7.92078627]
[1758260446091,0.06,245.17,245.16,7.22078627]
[1758260446712,0.06,245.17,245.16,7.92078627]
[1758260447408,0.74,245.17,245.16,3.14181744]
[1758260447595,0.74,245.17,245.16,0.03]
[1758260447798,0.06,245.17,245.16,35.54896883]
[1758260448012,0.06,245.17,245.16,37.02776662]
[1758260450928,0.06,245.17,245.16,38.66085294]
[1758260451139,0.06,245.17,245.16,39.36085294]
[1758260453907,0.06,245.17,245.16,37.88205515]
[1758260454102,1e-08,245.17,245.16,45.56036724]
[1758260454822,1e-08,245.18,245.16,45.96826412]
[1758260455120,1e-08,245.19,245.18,26.28432314]
[1758260455298,1e-08,245.2,245.19,0.28432314]
[1758260455504,1e-08,245.2,245.19,2.47312093]
[1758260455726,1e-08,245.21,245.2,26.28432314]
[1758260455916,1e-08,245.21,245.2,61.70207123]
[1758260456222,1e-08,245.21,245.2,65.79037465]
[1758260456531,1e-08,245.21,245.2,67.26917244]
[1758260457319,1e-08,245.21,245.2,78.59257251]
[1758260459022,1e-08,245.21,245.2,75.32482442]
[1758260461138,1e-08,245.21,245.2,78.52893153]
[1758260461708,1e-08,245.21,245.2,75.32482442]
[1758260461935,1e-08,245.21,245.2,16.88050128]
[1758260462110,1e-08,245.21,245.2,48.30050128]
[1758260462928,1e-08,245.21,245.2,48.58482442]
[1758260463428,1e-08,245.21,245.2,17.16482442]
[1758260463733,1e-08,245.21,245.2,49.71265476]
[1758260466423,1e-08,245.21,245.2,48.99265476]
[1758260466615,1e-08,245.21,245.2,48.58482442]
[1758260467313,1e-08,245.21,245.2,49.30482442]
[1758260468439,1e-08,245.21,245.2,48.58482442]
[1758260469114,1e-08,245.21,245.2,48.61482442]
[1758260469913,1e-08,245.21,245.2,49.33482442]
[1758260470430,1e-08,245.21,245.2,48.61482442]
[1758260470619,1e-08,245.21,245.2,49.02265476]
[1758260471334,1e-08,245.21,245.2,49.74265476]
[1758260472022,1e-08,245.22,245.2,51.22145255]
[1758260472223,1e-08,245.23,245.22,26.28432314]
[1758260472431,1e-08,245.23,245.22,61.0497158]
[1758260472623,1e-08,245.23,245.22,61.36191872]
[1758260472833,1e-08,245.23,245.22,62.99433858]
[1758260473517,1e-08,245.23,245.22,65.59351159]
[1758260475315,1e-08,245.23,245.22,66.35230938]
[1758260477848,1e-08,245.23,245.22,64.87351159]
[1758260478057,0.70000001,245.23,245.22,64.87351159]
[1758260479516,0.70000001,245.23,245.22,38.58918845]
[1758260479722,0.70000001,245.23,245.22,37.11039066]
[1758260479923,0.70000001,245.23,245.22,38.58918845]
[1758260480619,0.70000001,245.23,245.22,1.63241986]
[1758260480824,0.70000001,245.23,245.21,31.4]
[1758260481018,0.7,245.22,245.2,31.43]
[1758260481341,0.7,245.21,245.2,35.50830342]
[1758260482044,0.7,245.21,245.2,31.43]
[1758260482422,0.7,245.21,245.2,35.50830342]
[1758260485627,0.7,245.21,245.2,36.98710121]
[1758260486146,0.7,245.21,245.2,31.43]
[1758260491963,6.25693489,245.21,245.2,0.03]
[1758260496769,0.7,245.21,245.2,0.03]
[1758260497266,0.7,245.21,245.2,1.50879779]
[1758260497449,1e-08,245.23,245.2,1.50879779]
[1758260497755,0.72,245.22,245.2,0.03]
[1758260498164,0.72,245.21,245.2,0.03]
[1758260501542,7.10781874,245.21,245.2,0.03]
[1758260505265,20.70341275,245.21,245.2,0.03]
[1758260505455,33.20621238,245.21,245.2,0.03]
[1758260514268,33.49053552,245.21,245.2,0.03]
[1758260518576,16.58093673,245.21,245.2,0.03]
[1758260518878,47.98093673,245.21,245.2,0.03]
[1758260519976,16.58093673,245.21,245.2,0.03]
[1758260520356,12.50279963,245.21,245.2,0.74]
[1758260520752,16.58093673,245.21,245.2,0.03]
[1758260524250,12.50279963,245.21,245.2,0.74]
[1758260524873,12.50279963,245.21,245.2,3.04968164]
[1758260526388,1e-08,245.23,245.21,4.0781371]
[1758260526753,1e-08,245.23,245.22,0.71]
[1758260527684,1e-08,245.23,245.2,3.04968164]
[1758260527861,1e-08,245.23,245.2,0.03]
[1758260528187,1e-08,245.23,245.2,0.74]
[1758260529184,1e-08,245.23,245.21,0.71]
[1758260529561,1e-08,245.23,245.22,0.71]
[1758260530365,1e-08,245.23,245.2,0.03]
[1758260530565,1e-08,245.23,245.2,0.74]
[1758260531182,1e-08,245.23,245.21,0.71]
[1758260532081,1e-08,245.23,245.22,0.71]
[1758260533183,1e-08,245.23,245.22,33.09765244]
[1758260533396,0.06,245.24,245.23,26.28432314]
[1758260533567,3.30860012,245.25,245.23,31.59368642]
[1758260533768,0.06,245.26,245.25,0.28432314]
[1758260533978,0.06,245.26,245.25,4.90368642]
[1758260534786,0.06,245.26,245.25,6.53597305]
[1758260534986,0.06,245.26,245.25,36.32912187]
[1758260535168,0.06,245.26,245.25,66.07683524]
[1758260536391,0.06,245.26,245.25,34.69683524]
[1758260536558,0.06,245.26,245.25,66.07683524]
[1758260536759,0.06,245.26,245.25,67.70918848]
[1758260536983,0.06,245.26,245.25,79.73609979]
[1758260541394,0.06,245.26,245.25,79.71609979]
[1758260541590,0.06,245.26,245.25,78.08374655]
[1758260541773,0.06,245.26,245.25,79.71609979]
[1758260543675,0.06,245.26,245.25,80.00042293]
[1758260548283,0.06,245.27,245.26,0.28432314]
[1758260548475,0.06,245.27,245.26,2.59400478]
[1758260549098,0.06,245.27,245.26,4.22602502]
[1758260549295,1e-08,245.27,245.26,4.22602502]
[1758260550581,1e-08,245.27,245.26,8.30333073]
[1758260550995,1e-08,245.27,245.26,39.66333073]
[1758260554187,0.1,245.29,245.27,2.30968164]
[1758260554981,0.1,245.29,245.27,3.94170187]
[1758260555190,0.1,245.29,245.27,35.30170187]
[1758260555698,0.88,245.28,245.27,3.94170187]
[1758260555903,0.88,245.28,245.27,35.30170187]
[1758260556104,0.88,245.28,245.27,39.37884134]
[1758260556504,0.88,245.28,245.27,37.74682111]
[1758260557910,0.88,245.28,245.27,36.91408932]
[1758260559215,0.88,245.28,245.27,38.54637595]
[1758260559508,0.88,245.28,245.27,36.91408932]
[1758260559891,0.88,245.28,245.27,38.54637595]
[1758260562910,0.88,245.28,245.25,4.107428]
[1758260563221,0.2,245.28,245.26,32.83694985]
[1758260563512,0.2,245.28,245.27,1.47694985]
[1758260564096,0.2,245.28,245.27,32.83694985]
[1758260564300,0.88,245.28,245.27,32.83694985]
[1758260565219,0.88,245.28,245.27,1.47694985]
[1758260565514,0.88,245.28,245.25,31.39]
[1758260565817,0.68,245.27,245.25,31.39]
[1758260566004,0.68,245.26,245.25,31.39]
[1758260569224,0.68,245.26,245.25,32.86694985]
[1758260569397,0.68,245.26,245.25,31.39]
[1758260571308,0.68,245.26,245.25,0.03]
[1758260571898,4.75730571,245.26,245.25,0.03]
[1758260572708,6.23425556,245.26,245.25,0.03]
[1758260581611,4.75730571,245.26,245.25,0.03]
[1758260582129,0.68,245.26,245.25,0.03]
[1758260582333,0.06,245.27,245.25,0.03]
[1758260582536,0.06,245.27,245.25,1.50694985]
[1758260584233,0.06,245.27,245.26,1.47694985]
[1758260584420,0.67,245.26,245.25,0.03]
[1758260584628,2.14694985,245.26,245.25,0.03]
[1758260585011,0.67,245.26,245.25,0.03]
[1758260585835,0.67,245.26,245.22,0.03]
[1758260585836,13.59559401,245.25,245.22,0.03]
[1758260586141,5.55458808,245.24,245.22,0.03]
[1758260586513,6.22458808,245.24,245.22,0.03]
[1758260586936,4.74763823,245.24,245.22,0.03]
[1758260590530,15.07254386,245.23,245.22,0.03]
[1758260591016,15.74254386,245.23,245.22,0.03]
[1758260591627,19.82034837,245.23,245.22,0.03]
[1758260592132,19.96250994,245.23,245.22,0.03]
[1758260592718,20.10467151,245.23,245.22,0.03]
[1758260593239,51.46467151,245.23,245.22,0.03]
[1758260598439,52.48480836,245.23,245.17,0.03]
[1758260598643,16.83381685,245.18,245.17,0.03]
[1758260598950,52.34034326,245.18,245.17,0.03]
[1758260599255,53.01034326,245.18,245.17,0.03]
[1758260599733,57.08897936,245.18,245.17,0.03]
[1758260601644,51.18117996,245.18,245.17,0.03]
[1758260601837,49.70423011,245.18,245.17,0.03]
[1758260602022,51.18117996,245.18,245.17,0.03]
[1758260603453,52.94245295,245.18,245.17,0.03]
[1758260603658,57.3733025,245.18,245.17,0.03]
[1758260604127,59.00732281,245.18,245.17,0.03]
[1758260604628,13.87991715,245.17,245.15,0.03]
[1758260604855,13.87991715,245.17,245.12,0.03]
[1758260604856,15.356867,245.14,245.12,0.03]
[1758260605149,46.716867,245.14,245.12,0.03]
[1758260605448,47.426867,245.14,245.12,0.03]
[1758260607362,51.50616862,245.14,245.12,0.03]
[1758260608365,50.02921877,245.14,245.12,0.03]
[1758260608537,51.50616862,245.14,245.12,0.03]
[1758260608962,77.40187041,245.14,245.12,0.03]
[1758260610042,43.57059742,245.14,245.12,0.03]
[1758260610235,76.40754727,245.14,245.12,0.03]
[1758260611952,45.04754727,245.14,245.12,0.03]
[1758260612160,76.40754727,245.14,245.12,0.03]
[1758260612645,77.11754727,245.14,245.12,0.03]
[1758260613475,43.57059742,245.14,245.12,0.03]
[1758260613641,74.93059742,245.14,245.12,0.03]
[1758260614552,76.40754727,245.14,245.12,0.03]
[1758260614752,29.97500341,245.14,245.12,0.03]
[1758260615052,61.33500341,245.14,245.12,0.03]
[1758260617766,77.11754727,245.14,245.12,0.03]
[1758260618964,77.11754727,245.14,245.13,0.03]
[1758260619561,76.40754727,245.14,245.13,0.03]
[1758260619776,77.242808,245.14,245.13,0.03]
[1758260620255,74.93059742,245.14,245.13,0.03]
[1758260620559,77.242808,245.14,245.13,0.03]
[1758260622035,77.302808,245.14,245.13,0.03]
[1758260622266,78.012808,245.14,245.13,0.03]
[1758260622573,13.59559401,245.13,245.12,1e-08]
[1758260622865,19.98727262,245.13,245.12,1e-08]
[1758260623073,45.92835865,245.13,245.12,1e-08]
[1758260626665,60.00500433,245.11,245.1,1e-08]
[1758260628762,64.08480523,245.11,245.1,1e-08]
[1758260632772,63.37480523,245.11,245.1,1e-08]
[1758260634167,61.06259465,245.11,245.1,1e-08]
[1758260635377,29.70259465,245.11,245.1,1e-08]
[1758260639066,16.10700064,245.11,245.1,2.31221059]
[1758260640076,16.10700064,245.11,245.1,1e-08]
[1758260640455,16.16700064,245.11,245.1,1e-08]
[1758260642070,12.08719974,245.11,245.1,2.34221059]
[1758260642268,12.08719974,245.11,245.1,28.34221059]
[1758260643280,12.08719974,245.11,245.1,2.34221059]
[1758260643490,12.08719974,245.11,245.1,6.42217795]
[1758260646285,0.06,245.11,245.1,6.42217795]
[1758260646970,0.06,245.11,245.1,8.05559772]
[1758260648386,0.06,245.11,245.1,34.05559772]
[1758260648681,0.06,245.11,245.1,8.05559772]
[1758260651270,4.8098009,245.11,245.1,1e-08]
[1758260651484,20.71760549,245.11,245.1,1e-08]
[1758260652193,20.71760549,245.11,245.08,0.03]
[1758260652194,30.91710775,245.11,245.08,0.03]
[1758260652364,15.90780459,245.09,245.08,0.03]
[1758260652872,16.57780459,245.09,245.08,0.03]
[1758260653079,28.60500433,245.09,245.08,0.03]
[1758260654486,32.68513815,245.09,245.08,0.03]
[1758260665610,16.10733356,245.09,245.08,0.03]
[1758260665784,16.10733356,245.09,245.08,2.34221058]
[1758260668814,12.02719974,245.09,245.08,2.34221058]
[1758260668978,12.02719974,245.09,245.08,2.40221058]
[1758260669178,12.02719974,245.09,245.08,2.34221058]
[1758260669994,12.02719974,245.09,245.08,2.40221058]
[1758260671680,12.02719974,245.09,245.08,2.34221058]
[1758260673209,12.02719974,245.09,245.08,0.03]
[1758260673383,12.02719974,245.09,245.08,2.34221058]
[1758260675996,12.02719974,245.09,245.08,38.20683403]
[1758260676316,0.06,245.11,245.1,26.0]
[1758260676500,0.06,245.11,245.1,28.31221058]
[1758260676703,0.06,245.11,245.1,28.37221058]
[1758260677296,0.06,245.11,245.1,28.65653372]
[1758260677993,0.06,245.11,245.1,6.73650108]
[1758260678321,0.06,245.11,245.1,38.15650108]
[1758260678492,0.06,245.14,245.13,26.0]
[1758260678687,1.01540005,245.18,245.13,28.59653372]
[1758260678891,1.01540005,245.18,245.15,4.62442116]
[1758260679109,1.01540005,245.18,245.15,0.28432314]
[1758260679418,1.01540005,245.18,245.15,38.14169729]
[1758260679621,1.01540005,245.18,245.15,33.51727613]
[1758260679921,1.01540005,245.18,245.15,40.90757918]
[1758260680097,1.01540005,245.18,245.15,43.35376141]
[1758260680299,1.01540005,245.18,245.15,11.81376141]
[1758260680511,1.01540005,245.18,245.15,31.54]
[1758260680694,1.01540005,245.18,245.15,33.01806061]
[1758260680894,1.01540005,245.18,245.15,59.03806061]
[1758260681213,1.69540005,245.18,245.15,59.03806061]
[1758260684024,1.69540005,245.18,245.15,59.01806061]
[1758260685407,1.69540005,245.18,245.15,60.49612122]
[1758260685610,1.01540005,245.18,245.15,60.49612122]
[1758260686900,1.01540005,245.18,245.15,28.95612122]
[1758260687101,0.74,245.16,245.15,58.99806061]
[1758260687304,0.06,245.16,245.15,58.99806061]
[1758260690121,0.06,245.16,245.15,27.47806061]
[1758260690327,0.74,245.16,245.15,27.47806061]
[1758260690506,0.74,245.16,245.15,26.0]
[1758260690723,0.74,245.16,245.15,27.47806061]
[1758260690910,0.74,245.16,245.15,1.47806061]
[1758260700233,0.06,245.16,245.15,7.03525644]
[1758260700547,0.06,245.16,245.15,11.52943827]
[1758260701350,0.06,245.16,245.15,11.46943827]
[1758260701524,0.06,245.16,245.15,7.39030305]
[1758260701917,0.75,245.16,245.15,64.87030305]
[1758260702138,0.06,245.16,245.15,64.87030305]
[1758260702339,0.06,245.16,245.15,64.93030305]
[1758260702821,0.06,245.16,245.15,65.21462619]
[1758260703028,0.06,245.16,245.15,69.29376141]
[1758260703422,0.06,245.17,245.15,43.29376141]
[1758260703623,0.06,245.17,245.16,7.45030305]
[1758260704625,0.06,245.17,245.16,7.73462619]
[1758260704837,0.06,245.19,245.18,27.47806061]
[1758260705021,0.06,245.19,245.18,63.32101985]
[1758260705221,0.06,245.19,245.18,63.38101985]
[1758260706628,0.06,245.19,245.18,37.38101985]
[1758260707017,10.08580022,245.21,245.18,37.38101985]
[1758260707226,10.08580022,245.21,245.2,1.76238375]
[1758260709437,10.08580022,245.21,245.2,5.84068717]
[1758260709832,10.08580022,245.21,245.2,5.90068717]
[1758260710035,10.08580022,245.21,245.2,5.84068717]
[1758260710547,10.08580022,245.21,245.2,59.22238375]
[1758260710848,10.08580022,245.21,245.2,63.30068717]
[1758260711628,10.08580022,245.21,245.2,31.84068717]
[1758260711848,10.08580022,245.21,245.2,63.30068717]
[1758260712037,10.77580022,245.21,245.2,63.30068717]
[1758260712441,10.08580022,245.21,245.2,63.30068717]
[1758260712953,10.08580022,245.21,245.2,31.84068717]
[1758260713155,10.08580022,245.21,245.2,63.30068717]
[1758260715052,10.77580022,245.21,245.17,10.08580022]
[1758260715239,10.08580022,245.21,245.2,26.0]
[1758260715447,10.08580022,245.21,245.2,58.93806061]
[1758260715840,10.77580022,245.21,245.2,58.93806061]
[1758260716228,10.77580022,245.21,245.2,27.47806061]
[1758260716444,14.85393732,245.21,245.2,32.93806061]
[1758260716732,14.85393732,245.21,245.2,1.47806061]
[1758260718142,10.77580022,245.21,245.19,28.94]
[1758260718340,10.08580022,245.21,245.19,28.94]
[1758260718562,0.69,245.2,245.19,28.94]
[1758260719230,0.69,245.2,245.19,30.41806061]
[1758260719827,0.69,245.2,245.19,56.41806061]
[1758260721254,0.69,245.2,245.19,27.47806061]
[1758260721440,0.69,245.2,245.19,1.47806061]
[1758260721640,0.69,245.2,245.19,32.93806061]
[1758260722433,0.06,245.21,245.19,32.93806061]
[1758260722636,0.06,245.21,245.2,1.47806061]
[1758260725262,0.06,245.21,245.2,5.55636403]
[1758260725451,0.06,245.21,245.2,31.55636403]
[1758260726468,0.06,245.21,245.2,5.84068717]
[1758260726643,0.06,245.21,245.2,5.90068717]
[1758260726838,0.06,245.21,245.2,7.37874778]
[1758260728044,0.06,245.24,245.2,22.00868817]